[Event "*** SCC Grand Prix: Titled Tuesday Blitz"]
[Site "Chess.com"]
[Date "2020.07.14"]
[Round "4"]
[White "Juanovic"]
[Black "BJthechessgod"]
[Result "1-0"]
[WhiteElo "2097"]
[BlackElo "2293"]
[TimeControl "180+1"]
[EndTime "10:37:25 PDT"]
[Termination "Juanovic won on time"]

1. e4 {[%clk 0:03:00.9]} 1... c5 {[%clk 0:02:59.2]} 2. Nf3 {[%clk 0:03:00.6]}
2... d6 {[%clk 0:02:53.6]} 3. d4 {[%clk 0:03:00.3]} 3... cxd4 {[%clk 0:02:53.7]}
4. Nxd4 {[%clk 0:03:01.2]} 4... Nf6 {[%clk 0:02:54.3]} 5. Nc3 {[%clk 0:03:01.3]}
5... g6 {[%clk 0:02:54.9]} 6. Be3 {[%clk 0:03:01.1]} 6... Bg7 {[%clk 0:02:55.4]}
7. f3 {[%clk 0:03:01.6]} 7... O-O {[%clk 0:02:55.5]} 8. Qd2 {[%clk 0:03:01.6]}
8... Nc6 {[%clk 0:02:52.8]} 9. Bc4 {[%clk 0:03:01.6]} 9... Bd7 {[%clk
0:02:50.6]} 10. O-O-O {[%clk 0:03:01.2]} 10... Rc8 {[%clk 0:02:48.8]} 11. Bb3
{[%clk 0:03:01.3]} 11... Nxd4 {[%clk 0:02:43.3]} 12. Bxd4 {[%clk 0:03:01.1]}
12... b5 {[%clk 0:02:43.8]} 13. Bxa7 {[%clk 0:03:01]} 13... Qa5 {[%clk
0:02:00.9]} 14. Qf2 {[%clk 0:02:52.5]} 14... Rxc3 {[%clk 0:01:33.9]} 15. bxc3
{[%clk 0:02:50.7]} 15... Qa3+ {[%clk 0:01:21]} 16. Kd2 {[%clk 0:02:48]} 16...
Rc8 {[%clk 0:01:11]} 17. Bd4 {[%clk 0:02:39.5]} 17... e5 {[%clk 0:00:54]} 18.
Be3 {[%clk 0:02:37.3]} 18... d5 {[%clk 0:00:54]} 19. exd5 {[%clk 0:02:36.2]}
19... e4 {[%clk 0:00:54.1]} 20. Bd4 {[%clk 0:02:31.1]} 20... exf3 {[%clk
0:00:36.1]} 21. gxf3 {[%clk 0:02:30.8]} 21... Qd6 {[%clk 0:00:15.5]} 22. Kc1
{[%clk 0:02:22.8]} 22... Qa3+ {[%clk 0:00:13.5]} 23. Kb1 {[%clk 0:02:23.1]}
23... b4 {[%clk 0:00:02.6]} 24. cxb4 {[%clk 0:02:20.3]} 24... Ne8 {[%clk
0:00:01.4]} 25. Bxg7 {[%clk 0:02:19.2]} 25... Kxg7 {[%clk 0:00:02]} 26. Qd4+
{[%clk 0:02:19]} 26... Kg8 {[%clk 0:00:01.9]} 27. Rhe1 {[%clk 0:02:15.3]} 27...
Rb8 {[%clk 0:00:02.5]} 28. c3 {[%clk 0:02:11.9]} 28... Ba4 {[%clk 0:00:01.9]}
29. Qc4 {[%clk 0:02:10.5]} 29... Bxb3 {[%clk 0:00:01.9]} 30. Qxb3 {[%clk
0:02:10.2]} 30... Qa7 {[%clk 0:00:01.6]} 31. d6 {[%clk 0:02:08.1]} 31... Nf6
{[%clk 0:00:01.4]} 32. Re7 {[%clk 0:02:06.5]} 32... Nd7 {[%clk 0:00:01]} 33.
Qxf7+ {[%clk 0:02:06.4]} 1-0

[Event "*** SCC Grand Prix: Titled Tuesday Blitz"]
[Site "Chess.com"]
[Date "2020.07.14"]
[Round "4"]
[White "wannabe2700"]
[Black "Bacyanide"]
[Result "1-0"]
[WhiteElo "2663"]
[BlackElo "2468"]
[TimeControl "180+1"]
[EndTime "10:37:39 PDT"]
[Termination "wannabe2700 won by resignation"]

1. d4 {[%clk 0:03:00.9]} 1... d5 {[%clk 0:02:57.8]} 2. c4 {[%clk 0:03:00.7]}
2... e6 {[%clk 0:02:58.2]} 3. Nc3 {[%clk 0:02:59.9]} 3... c5 {[%clk 0:02:55.8]}
4. cxd5 {[%clk 0:02:59.6]} 4... exd5 {[%clk 0:02:56.7]} 5. Nf3 {[%clk
0:03:00.1]} 5... Nf6 {[%clk 0:02:56.5]} 6. g3 {[%clk 0:02:59.8]} 6... Nc6 {[%clk
0:02:54.5]} 7. Bg2 {[%clk 0:03:00]} 7... cxd4 {[%clk 0:02:55.4]} 8. Nxd4 {[%clk
0:03:00]} 8... Bc5 {[%clk 0:02:55.7]} 9. Nb3 {[%clk 0:02:56.6]} 9... Bb6 {[%clk
0:02:55]} 10. O-O {[%clk 0:02:56.1]} 10... d4 {[%clk 0:02:54.4]} 11. Na4 {[%clk
0:02:49.9]} 11... O-O {[%clk 0:02:53.8]} 12. Bg5 {[%clk 0:02:29.4]} 12... Re8
{[%clk 0:02:52.1]} 13. Nxb6 {[%clk 0:02:18.9]} 13... axb6 {[%clk 0:02:51.5]} 14.
Bxc6 {[%clk 0:02:16.2]} 14... bxc6 {[%clk 0:02:52.4]} 15. Qxd4 {[%clk
0:02:11.3]} 15... Qxd4 {[%clk 0:02:41.5]} 16. Nxd4 {[%clk 0:02:12.2]} 16... c5
{[%clk 0:02:41.8]} 17. Nb5 {[%clk 0:02:09.1]} 17... Rxe2 {[%clk 0:02:41]} 18.
Bxf6 {[%clk 0:01:45.9]} 18... gxf6 {[%clk 0:02:40.3]} 19. Nc7 {[%clk 0:01:46.6]}
19... Ra7 {[%clk 0:02:32.3]} 20. Nd5 {[%clk 0:01:46]} 20... Rxb2 {[%clk
0:02:31.1]} 21. Rfb1 {[%clk 0:01:28.1]} 21... Raxa2 {[%clk 0:02:19.8]} 22. Ne7+
{[%clk 0:01:27.7]} 22... Kg7 {[%clk 0:02:19.2]} 23. Nxc8 {[%clk 0:01:27.6]}
23... Rxf2 {[%clk 0:02:15.9]} 24. Rxa2 {[%clk 0:01:27.5]} 24... Rxa2 {[%clk
0:02:16.6]} 25. Nxb6 {[%clk 0:01:27]} 25... Rc2 {[%clk 0:02:12.8]} 26. Rf1
{[%clk 0:01:22.6]} 26... c4 {[%clk 0:02:03.1]} 27. Nd5 {[%clk 0:01:14.8]} 27...
Rd2 {[%clk 0:01:45.4]} 28. Nxf6 {[%clk 0:01:04.8]} 28... Rd4 {[%clk 0:01:38.7]}
29. Nh5+ {[%clk 0:00:47.6]} 29... Kf8 {[%clk 0:01:34.6]} 30. Nf4 {[%clk
0:00:48.5]} 30... c3 {[%clk 0:01:27.6]} 31. Rc1 {[%clk 0:00:48.7]} 31... Rc4
{[%clk 0:01:20.3]} 32. Kf2 {[%clk 0:00:48.8]} 32... Ke7 {[%clk 0:01:16]} 33.
Rxc3 {[%clk 0:00:44.8]} 1-0

[Event "*** SCC Grand Prix: Titled Tuesday Blitz"]
[Site "Chess.com"]
[Date "2020.07.14"]
[Round "4"]
[White "Sanyura"]
[Black "GaboSalazar2001"]
[Result "1-0"]
[WhiteElo "2469"]
[BlackElo "2302"]
[TimeControl "180+1"]
[EndTime "10:37:42 PDT"]
[Termination "Sanyura won by resignation"]

1. c4 {[%clk 0:03:00.9]} 1... e5 {[%clk 0:02:59.1]} 2. Nc3 {[%clk 0:03:00.5]}
2... Nf6 {[%clk 0:02:59.8]} 3. Nf3 {[%clk 0:02:59.3]} 3... Nc6 {[%clk
0:02:59.6]} 4. e3 {[%clk 0:02:58.4]} 4... Bb4 {[%clk 0:02:56.7]} 5. Be2 {[%clk
0:02:57]} 5... O-O {[%clk 0:02:55.8]} 6. O-O {[%clk 0:02:54.9]} 6... Re8 {[%clk
0:02:49.5]} 7. Nd5 {[%clk 0:02:52.4]} 7... Bf8 {[%clk 0:02:46.2]} 8. b3 {[%clk
0:02:48.1]} 8... e4 {[%clk 0:02:39.3]} 9. Nd4 {[%clk 0:02:46.9]} 9... Nxd5
{[%clk 0:02:29.8]} 10. cxd5 {[%clk 0:02:44.9]} 10... Nxd4 {[%clk 0:01:56.7]} 11.
exd4 {[%clk 0:02:45.8]} 11... Qg5 {[%clk 0:01:36.8]} 12. Bc4 {[%clk 0:02:24.2]}
12... d6 {[%clk 0:01:23.3]} 13. d3 {[%clk 0:02:23.7]} 13... Qh4 {[%clk
0:01:18.8]} 14. dxe4 {[%clk 0:02:19]} 14... Rxe4 {[%clk 0:01:16.7]} 15. Be3
{[%clk 0:02:08]} 15... Bg4 {[%clk 0:00:55]} 16. Qc2 {[%clk 0:01:56.9]} 16...
Rae8 {[%clk 0:00:54.6]} 17. Bd3 {[%clk 0:01:36.9]} 17... R4e7 {[%clk 0:00:54.4]}
18. Rac1 {[%clk 0:01:30.1]} 18... g6 {[%clk 0:00:54.3]} 19. Qd2 {[%clk
0:01:23.7]} 19... f6 {[%clk 0:00:35.2]} 20. Rc3 {[%clk 0:01:10.4]} 20... Qh5
{[%clk 0:00:21.4]} 21. Rfc1 {[%clk 0:01:08.4]} 21... Qxd5 {[%clk 0:00:19.5]} 22.
Bc4 {[%clk 0:01:07.6]} 1-0

[Event "*** SCC Grand Prix: Titled Tuesday Blitz"]
[Site "Chess.com"]
[Date "2020.07.14"]
[Round "4"]
[White "MikeSailer"]
[Black "Tekushka"]
[Result "0-1"]
[WhiteElo "2134"]
[BlackElo "2361"]
[TimeControl "180+1"]
[EndTime "10:37:52 PDT"]
[Termination "Tekushka won by resignation"]

1. d4 {[%clk 0:03:00.9]} 1... d5 {[%clk 0:02:59.8]} 2. Bf4 {[%clk 0:02:59.7]}
2... c5 {[%clk 0:03:00]} 3. e3 {[%clk 0:02:57.9]} 3... cxd4 {[%clk 0:02:59.8]}
4. exd4 {[%clk 0:02:57.5]} 4... Nc6 {[%clk 0:03:00.1]} 5. Nf3 {[%clk 0:02:54.8]}
5... Bf5 {[%clk 0:02:56.2]} 6. c3 {[%clk 0:02:51]} 6... e6 {[%clk 0:02:56.1]} 7.
Be2 {[%clk 0:02:49.7]} 7... Bd6 {[%clk 0:02:41.6]} 8. Bxd6 {[%clk 0:02:43]} 8...
Qxd6 {[%clk 0:02:41.7]} 9. O-O {[%clk 0:02:26.8]} 9... Nge7 {[%clk 0:02:41.6]}
10. Nbd2 {[%clk 0:02:26.6]} 10... h6 {[%clk 0:02:40.5]} 11. Re1 {[%clk
0:02:27.1]} 11... g5 {[%clk 0:02:36.3]} 12. Bf1 {[%clk 0:02:24.9]} 12... O-O-O
{[%clk 0:02:31.5]} 13. Ne5 {[%clk 0:02:23.2]} 13... Nxe5 {[%clk 0:02:20.2]} 14.
dxe5 {[%clk 0:02:22.7]} 14... Qc7 {[%clk 0:02:20.1]} 15. Nb3 {[%clk 0:02:11.9]}
15... Nc6 {[%clk 0:02:16.2]} 16. Nd4 {[%clk 0:02:03.9]} 16... Nxd4 {[%clk
0:02:12.9]} 17. cxd4 {[%clk 0:01:45.8]} 17... Kb8 {[%clk 0:02:12.3]} 18. Rc1
{[%clk 0:01:45.8]} 18... Qb6 {[%clk 0:02:12.3]} 19. Qa4 {[%clk 0:01:42.3]} 19...
Qxb2 {[%clk 0:01:55.7]} 20. Rc5 {[%clk 0:01:38.6]} 20... Rc8 {[%clk 0:01:45.9]}
21. Rb5 {[%clk 0:01:35]} 21... Qc2 {[%clk 0:01:43.4]} 22. Qb4 {[%clk 0:01:19.4]}
22... Rc7 {[%clk 0:01:36.3]} 23. a4 {[%clk 0:01:09.4]} 23... Rhc8 {[%clk
0:01:34.5]} 24. a5 {[%clk 0:01:05.6]} 24... Qc3 {[%clk 0:01:30]} 25. a6 {[%clk
0:00:39.1]} 25... Qxb4 {[%clk 0:01:27.3]} 26. Rxb4 {[%clk 0:00:37.9]} 26... b6
{[%clk 0:01:26.7]} 27. h3 {[%clk 0:00:27.6]} 27... Rc1 {[%clk 0:01:26.1]} 28.
Rxc1 {[%clk 0:00:17.9]} 28... Rxc1 {[%clk 0:01:25.9]} 29. f3 {[%clk 0:00:18.7]}
29... Bd3 {[%clk 0:01:25.4]} 0-1

[Event "*** SCC Grand Prix: Titled Tuesday Blitz"]
[Site "Chess.com"]
[Date "2020.07.14"]
[Round "4"]
[White "Izoria123"]
[Black "velemajstor767276"]
[Result "1-0"]
[WhiteElo "2890"]
[BlackElo "2531"]
[TimeControl "180+1"]
[EndTime "10:37:56 PDT"]
[Termination "Izoria123 won by resignation"]

1. Nf3 {[%clk 0:03:00.9]} 1... Nf6 {[%clk 0:02:58]} 2. c4 {[%clk 0:03:00.2]}
2... e6 {[%clk 0:02:57.8]} 3. g3 {[%clk 0:02:59.5]} 3... b6 {[%clk 0:02:57.3]}
4. Bg2 {[%clk 0:02:59.1]} 4... Bb7 {[%clk 0:02:57.6]} 5. O-O {[%clk 0:03:00]}
5... Be7 {[%clk 0:02:57.5]} 6. Nc3 {[%clk 0:03:00.4]} 6... O-O {[%clk
0:02:57.2]} 7. Re1 {[%clk 0:03:00.9]} 7... d5 {[%clk 0:02:57.1]} 8. cxd5 {[%clk
0:03:01.6]} 8... exd5 {[%clk 0:02:56.9]} 9. d4 {[%clk 0:03:01.3]} 9... Re8
{[%clk 0:02:45]} 10. Bf4 {[%clk 0:02:59.3]} 10... Bd6 {[%clk 0:02:42.2]} 11. Bg5
{[%clk 0:02:51.5]} 11... h6 {[%clk 0:02:35.2]} 12. Bxf6 {[%clk 0:02:50.9]} 12...
Qxf6 {[%clk 0:02:36.1]} 13. Qb3 {[%clk 0:02:50.7]} 13... c6 {[%clk 0:02:35.2]}
14. e4 {[%clk 0:02:50.4]} 14... dxe4 {[%clk 0:01:59.4]} 15. Nxe4 {[%clk
0:02:51.3]} 15... Rxe4 {[%clk 0:01:37.9]} 16. Rxe4 {[%clk 0:02:52.2]} 16... Nd7
{[%clk 0:01:32.9]} 17. Rae1 {[%clk 0:02:50.6]} 17... Nf8 {[%clk 0:01:02.6]} 18.
Re8 {[%clk 0:02:33.3]} 18... c5 {[%clk 0:00:48.8]} 19. Rxa8 {[%clk 0:02:23.7]}
19... Bxa8 {[%clk 0:00:45.8]} 20. dxc5 {[%clk 0:02:08.1]} 20... Bxc5 {[%clk
0:00:44.5]} 21. Qc3 {[%clk 0:02:08.5]} 21... Qf5 {[%clk 0:00:37.4]} 22. Nd4
{[%clk 0:02:05.2]} 22... Qf6 {[%clk 0:00:34.6]} 23. Nf3 {[%clk 0:01:58.1]} 23...
Qf5 {[%clk 0:00:26.7]} 24. a3 {[%clk 0:01:56.2]} 24... Ne6 {[%clk 0:00:23.6]}
25. b4 {[%clk 0:01:52.6]} 25... Bxf3 {[%clk 0:00:12.9]} 26. Qxf3 {[%clk
0:01:53.5]} 26... Qxf3 {[%clk 0:00:07.7]} 27. Bxf3 {[%clk 0:01:54.4]} 27... Bd4
{[%clk 0:00:07.5]} 28. Bd5 {[%clk 0:01:53.9]} 28... Nc7 {[%clk 0:00:06]} 29. Bb3
{[%clk 0:01:42.8]} 29... Kf8 {[%clk 0:00:06.1]} 30. Rd1 {[%clk 0:01:42.4]} 30...
Bb2 {[%clk 0:00:06]} 31. Rd7 {[%clk 0:01:42.1]} 31... Ne6 {[%clk 0:00:05.3]} 32.
Bxe6 {[%clk 0:01:40.2]} 32... fxe6 {[%clk 0:00:06.2]} 33. Rxa7 {[%clk 0:01:40]}
33... Bd4 {[%clk 0:00:05.2]} 34. b5 {[%clk 0:01:38.9]} 34... e5 {[%clk
0:00:05.2]} 35. Kf1 {[%clk 0:01:38.3]} 35... e4 {[%clk 0:00:06.1]} 36. Ke2
{[%clk 0:01:38.3]} 36... Bc5 {[%clk 0:00:06.7]} 37. a4 {[%clk 0:01:37.9]} 1-0

[Event "*** SCC Grand Prix: Titled Tuesday Blitz"]
[Site "Chess.com"]
[Date "2020.07.14"]
[Round "4"]
[White "AniJak"]
[Black "Harry_Rakkel"]
[Result "0-1"]
[WhiteElo "2321"]
[BlackElo "2568"]
[TimeControl "180+1"]
[EndTime "10:38:01 PDT"]
[Termination "Harry_Rakkel won by checkmate"]

1. e4 {[%clk 0:02:50.8]} 1... g6 {[%clk 0:02:57.3]} 2. d4 {[%clk 0:02:50.4]}
2... Bg7 {[%clk 0:02:57]} 3. Nc3 {[%clk 0:02:50.4]} 3... d6 {[%clk 0:02:56.6]}
4. g3 {[%clk 0:02:48.4]} 4... a6 {[%clk 0:02:54.6]} 5. a4 {[%clk 0:02:46.8]}
5... Nd7 {[%clk 0:02:50.8]} 6. Bg2 {[%clk 0:02:46.7]} 6... e5 {[%clk 0:02:50.5]}
7. Nge2 {[%clk 0:02:46]} 7... Ne7 {[%clk 0:02:50]} 8. O-O {[%clk 0:02:45.3]}
8... O-O {[%clk 0:02:49.8]} 9. f4 {[%clk 0:02:38.3]} 9... exd4 {[%clk
0:02:48.1]} 10. Nxd4 {[%clk 0:02:37.8]} 10... Nc5 {[%clk 0:02:47.4]} 11. h3
{[%clk 0:01:50.7]} 11... Bd7 {[%clk 0:02:33.7]} 12. Be3 {[%clk 0:01:34.9]} 12...
Nc6 {[%clk 0:02:11.3]} 13. Kh2 {[%clk 0:01:29.1]} 13... Re8 {[%clk 0:02:05.8]}
14. Nxc6 {[%clk 0:01:25.7]} 14... Bxc6 {[%clk 0:02:04.3]} 15. Bxc5 {[%clk
0:01:25]} 15... dxc5 {[%clk 0:02:03.7]} 16. e5 {[%clk 0:01:15.4]} 16... Bxg2
{[%clk 0:02:00.1]} 17. Kxg2 {[%clk 0:01:15.1]} 17... f6 {[%clk 0:01:58.9]} 18.
Qf3 {[%clk 0:01:05.5]} 18... fxe5 {[%clk 0:01:52.6]} 19. Qxb7 {[%clk 0:01:05.2]}
19... Rb8 {[%clk 0:01:45.7]} 20. Qxa6 {[%clk 0:01:04.3]} 20... Rxb2 {[%clk
0:01:43.8]} 21. Qc4+ {[%clk 0:00:56.6]} 21... Kh8 {[%clk 0:01:42.2]} 22. Nd5
{[%clk 0:00:51.7]} 22... e4 {[%clk 0:01:34.5]} 23. Rad1 {[%clk 0:00:49.1]} 23...
Bd4 {[%clk 0:01:25.4]} 24. Rxd4 {[%clk 0:00:45]} 24... cxd4 {[%clk 0:01:23.9]}
25. Qxd4+ {[%clk 0:00:45.2]} 25... Kg8 {[%clk 0:01:24]} 26. Ne7+ {[%clk
0:00:16.9]} 26... Kf7 {[%clk 0:01:21.6]} 27. Qxb2 {[%clk 0:00:17.1]} 27... Rxe7
{[%clk 0:01:17.5]} 28. Re1 {[%clk 0:00:17.1]} 28... Qd2+ {[%clk 0:01:15.8]} 29.
Kf1 {[%clk 0:00:17.3]} 29... e3 {[%clk 0:01:15.5]} 30. Qb3+ {[%clk 0:00:17.4]}
30... Kf8 {[%clk 0:01:12.1]} 31. Qc4 {[%clk 0:00:17.6]} 31... Qf2# {[%clk
0:01:10.8]} 0-1

[Event "*** SCC Grand Prix: Titled Tuesday Blitz"]
[Site "Chess.com"]
[Date "2020.07.14"]
[Round "4"]
[White "Legendinunknown"]
[Black "ShimanovAlex"]
[Result "1-0"]
[WhiteElo "2586"]
[BlackElo "2818"]
[TimeControl "180+1"]
[EndTime "10:38:02 PDT"]
[Termination "Legendinunknown won by resignation"]

1. d4 {[%clk 0:02:59]} 1... Nf6 {[%clk 0:02:59.5]} 2. c4 {[%clk 0:02:59.2]} 2...
g6 {[%clk 0:02:59.2]} 3. Nc3 {[%clk 0:02:58.4]} 3... Bg7 {[%clk 0:02:59.7]} 4.
e4 {[%clk 0:02:58.2]} 4... O-O {[%clk 0:02:59.8]} 5. Nf3 {[%clk 0:02:56.8]} 5...
d6 {[%clk 0:02:59.6]} 6. Be2 {[%clk 0:02:55.6]} 6... e5 {[%clk 0:02:58.3]} 7. d5
{[%clk 0:02:55.2]} 7... a5 {[%clk 0:02:57.6]} 8. Bg5 {[%clk 0:02:54.4]} 8... h6
{[%clk 0:02:56.9]} 9. Be3 {[%clk 0:02:54.5]} 9... Ng4 {[%clk 0:02:54]} 10. Bc1
{[%clk 0:02:54.4]} 10... f5 {[%clk 0:02:52.7]} 11. exf5 {[%clk 0:02:54.1]} 11...
gxf5 {[%clk 0:02:52.5]} 12. g3 {[%clk 0:02:54.3]} 12... e4 {[%clk 0:02:32.4]}
13. Nh4 {[%clk 0:02:53.2]} 13... Ne5 {[%clk 0:02:33]} 14. O-O {[%clk 0:02:52.1]}
14... Na6 {[%clk 0:02:31.3]} 15. Be3 {[%clk 0:02:49.8]} 15... Nc5 {[%clk
0:02:31]} 16. Qd2 {[%clk 0:02:48.7]} 16... Kh7 {[%clk 0:02:30]} 17. f4 {[%clk
0:02:35.3]} 17... Ng6 {[%clk 0:02:26]} 18. Nxg6 {[%clk 0:02:29.8]} 18... Kxg6
{[%clk 0:02:26.9]} 19. Rae1 {[%clk 0:02:26.5]} 19... Bd7 {[%clk 0:02:15.8]} 20.
Kh1 {[%clk 0:02:25.9]} 20... Kh7 {[%clk 0:02:13.8]} 21. Rg1 {[%clk 0:02:25.7]}
21... Qf6 {[%clk 0:02:03.7]} 22. Nd1 {[%clk 0:02:16.8]} 22... a4 {[%clk
0:02:01.3]} 23. g4 {[%clk 0:01:57.3]} 23... fxg4 {[%clk 0:01:59.9]} 24. Bxg4
{[%clk 0:01:58.2]} 24... Bxg4 {[%clk 0:01:50.6]} 25. Rxg4 {[%clk 0:01:59.1]}
25... Nd3 {[%clk 0:01:49.4]} 26. Reg1 {[%clk 0:01:59.1]} 26... Rf7 {[%clk
0:01:49.8]} 27. Nc3 {[%clk 0:01:51.5]} 27... Qe7 {[%clk 0:00:55.5]} 28. Qg2
{[%clk 0:01:47]} 28... Re8 {[%clk 0:00:52.6]} 29. a3 {[%clk 0:01:32.2]} 29...
Nc5 {[%clk 0:00:37.6]} 30. Qh3 {[%clk 0:01:26.3]} 30... Qd7 {[%clk 0:00:21.4]}
31. Qh5 {[%clk 0:01:24.1]} 31... Qf5 {[%clk 0:00:13.5]} 32. Rxg7+ {[%clk
0:01:22.2]} 1-0

[Event "*** SCC Grand Prix: Titled Tuesday Blitz"]
[Site "Chess.com"]
[Date "2020.07.14"]
[Round "4"]
[White "Yoshikrov"]
[Black "Ave_Mariia"]
[Result "0-1"]
[WhiteElo "2123"]
[BlackElo "2384"]
[TimeControl "180+1"]
[EndTime "10:38:09 PDT"]
[Termination "Ave_Mariia won by checkmate"]

1. e4 {[%clk 0:03:00.9]} 1... c5 {[%clk 0:02:58.7]} 2. Nf3 {[%clk 0:03:00.4]}
2... d6 {[%clk 0:02:59.1]} 3. d4 {[%clk 0:03:00.6]} 3... cxd4 {[%clk 0:02:59]}
4. Nxd4 {[%clk 0:03:00.5]} 4... Nf6 {[%clk 0:02:59.3]} 5. Nc3 {[%clk 0:02:59.2]}
5... g6 {[%clk 0:02:59.5]} 6. Be3 {[%clk 0:02:58.2]} 6... Bg7 {[%clk 0:02:58.4]}
7. Bc4 {[%clk 0:02:57.1]} 7... Nc6 {[%clk 0:02:56.8]} 8. f3 {[%clk 0:02:48.4]}
8... O-O {[%clk 0:02:54.3]} 9. Qd2 {[%clk 0:02:47.3]} 9... Bd7 {[%clk
0:02:52.3]} 10. O-O-O {[%clk 0:02:44.6]} 10... Rc8 {[%clk 0:02:48.9]} 11. Bb3
{[%clk 0:02:44.6]} 11... Nxd4 {[%clk 0:02:47.3]} 12. Bxd4 {[%clk 0:02:43.8]}
12... b5 {[%clk 0:02:47.6]} 13. Nd5 {[%clk 0:02:41.8]} 13... Nxd5 {[%clk
0:02:44.4]} 14. Bxg7 {[%clk 0:02:25.5]} 14... Kxg7 {[%clk 0:02:45.3]} 15. Bxd5
{[%clk 0:02:13.5]} 15... a5 {[%clk 0:02:36.1]} 16. a3 {[%clk 0:02:08.9]} 16...
Qc7 {[%clk 0:02:28.1]} 17. Kb1 {[%clk 0:02:06.3]} 17... b4 {[%clk 0:02:26.1]}
18. axb4 {[%clk 0:02:02.7]} 18... axb4 {[%clk 0:02:25.5]} 19. Bb3 {[%clk
0:01:57.6]} 19... Qa5 {[%clk 0:02:21.8]} 20. Qd5 {[%clk 0:01:48.2]} 20... Rc5
{[%clk 0:02:18.3]} 21. Qd4+ {[%clk 0:01:43]} 21... Kg8 {[%clk 0:02:15.6]} 22. g4
{[%clk 0:01:25]} 22... Ra8 {[%clk 0:02:09.4]} 23. Kc1 {[%clk 0:01:25.1]} 23...
Rac8 {[%clk 0:01:37.4]} 24. Kd2 {[%clk 0:01:11.4]} 24... Rxc2+ {[%clk
0:01:30.3]} 25. Bxc2 {[%clk 0:01:04.5]} 25... b3+ {[%clk 0:01:30.8]} 26. Ke3
{[%clk 0:00:58.9]} 26... Rxc2 {[%clk 0:01:26.2]} 27. Ra1 {[%clk 0:00:51.1]}
27... Qg5+ {[%clk 0:01:24]} 28. f4 {[%clk 0:00:51.4]} 28... Qxg4 {[%clk
0:01:21.9]} 29. Ra8+ {[%clk 0:00:50.7]} 29... Bc8 {[%clk 0:01:20.6]} 30. Rxc8+
{[%clk 0:00:23.8]} 30... Qxc8 {[%clk 0:01:13.1]} 31. Rd1 {[%clk 0:00:20.5]}
31... Qh3# {[%clk 0:01:11.5]} 0-1

[Event "*** SCC Grand Prix: Titled Tuesday Blitz"]
[Site "Chess.com"]
[Date "2020.07.14"]
[Round "4"]
[White "VladimirBugayev"]
[Black "Unknown_IM"]
[Result "0-1"]
[WhiteElo "2116"]
[BlackElo "2381"]
[TimeControl "180+1"]
[EndTime "10:38:09 PDT"]
[Termination "Unknown_IM won on time"]

1. e4 {[%clk 0:03:00.9]} 1... e5 {[%clk 0:02:58]} 2. Nf3 {[%clk 0:03:00.2]} 2...
Nc6 {[%clk 0:02:57.6]} 3. Nc3 {[%clk 0:02:59.8]} 3... Nf6 {[%clk 0:02:53]} 4. d4
{[%clk 0:02:59.2]} 4... exd4 {[%clk 0:02:48.4]} 5. Nxd4 {[%clk 0:02:59.2]} 5...
Bb4 {[%clk 0:02:47.7]} 6. Nxc6 {[%clk 0:02:59.1]} 6... bxc6 {[%clk 0:02:48.6]}
7. Bd3 {[%clk 0:02:59.1]} 7... d5 {[%clk 0:02:48.9]} 8. exd5 {[%clk 0:02:59.3]}
8... cxd5 {[%clk 0:02:49.8]} 9. O-O {[%clk 0:02:59.3]} 9... O-O {[%clk
0:02:50.3]} 10. h3 {[%clk 0:02:59.5]} 10... c6 {[%clk 0:02:49.3]} 11. Qf3 {[%clk
0:02:59.8]} 11... Bd6 {[%clk 0:02:47.2]} 12. Bf4 {[%clk 0:02:59.5]} 12... Rb8
{[%clk 0:02:46.5]} 13. b3 {[%clk 0:02:57.5]} 13... Rb4 {[%clk 0:02:44.5]} 14.
Ne2 {[%clk 0:02:57]} 14... Re8 {[%clk 0:02:43.4]} 15. c3 {[%clk 0:02:54.5]}
15... Rb8 {[%clk 0:02:41.2]} 16. Nd4 {[%clk 0:02:42.4]} 16... Bb7 {[%clk
0:02:36.5]} 17. b4 {[%clk 0:02:27.2]} 17... a5 {[%clk 0:02:29.5]} 18. a3 {[%clk
0:02:26.2]} 18... axb4 {[%clk 0:02:28.7]} 19. axb4 {[%clk 0:02:25.8]} 19... Qc7
{[%clk 0:02:25.9]} 20. Bxd6 {[%clk 0:01:58.3]} 20... Qxd6 {[%clk 0:02:26.8]} 21.
Nf5 {[%clk 0:01:44.9]} 21... Qc7 {[%clk 0:02:22.9]} 22. Rfe1 {[%clk 0:01:37.7]}
22... c5 {[%clk 0:02:20.8]} 23. bxc5 {[%clk 0:01:14.6]} 23... Qxc5 {[%clk
0:02:21.7]} 24. Nh6+ {[%clk 0:01:14.4]} 24... Kf8 {[%clk 0:02:17]} 25. Nf5
{[%clk 0:00:53.3]} 25... Qxc3 {[%clk 0:02:10.6]} 26. Rec1 {[%clk 0:00:47.6]}
26... Qe5 {[%clk 0:02:05.8]} 27. Re1 {[%clk 0:00:42.3]} 27... Qc7 {[%clk
0:01:56.3]} 28. Rxe8+ {[%clk 0:00:38.7]} 28... Rxe8 {[%clk 0:01:57.2]} 29. Rb1
{[%clk 0:00:30.1]} 29... Ba8 {[%clk 0:01:54.8]} 30. Ng3 {[%clk 0:00:22.1]} 30...
d4 {[%clk 0:01:44.3]} 31. Qf5 {[%clk 0:00:21.8]} 31... Re5 {[%clk 0:01:30.2]}
32. Qf4 {[%clk 0:00:10.1]} 32... Re1+ {[%clk 0:01:29.1]} 33. Rxe1 {[%clk
0:00:10.7]} 33... Qxf4 {[%clk 0:01:29.6]} 34. Nf5 {[%clk 0:00:08.7]} 34... Be4
{[%clk 0:01:26.3]} 0-1

[Event "*** SCC Grand Prix: Titled Tuesday Blitz"]
[Site "Chess.com"]
[Date "2020.07.14"]
[Round "4"]
[White "JuliaEfremova"]
[Black "2nd_life"]
[Result "1-0"]
[WhiteElo "2315"]
[BlackElo "2470"]
[TimeControl "180+1"]
[EndTime "10:38:10 PDT"]
[Termination "JuliaEfremova won on time"]

1. e4 {[%clk 0:03:00.9]} 1... e5 {[%clk 0:02:59.6]} 2. Nf3 {[%clk 0:02:59.7]}
2... Nc6 {[%clk 0:02:59.8]} 3. d4 {[%clk 0:02:59.6]} 3... exd4 {[%clk
0:02:59.6]} 4. Nxd4 {[%clk 0:02:59.7]} 4... Bb4+ {[%clk 0:02:57.5]} 5. Nc3
{[%clk 0:02:55.2]} 5... Qe7 {[%clk 0:02:52.9]} 6. f3 {[%clk 0:02:37.4]} 6... d5
{[%clk 0:02:43.8]} 7. Nxc6 {[%clk 0:02:36.5]} 7... bxc6 {[%clk 0:02:41.5]} 8.
Be2 {[%clk 0:02:32.3]} 8... Qh4+ {[%clk 0:01:58.5]} 9. g3 {[%clk 0:02:11.4]}
9... Qh3 {[%clk 0:01:57.5]} 10. exd5 {[%clk 0:02:01.8]} 10... Qg2 {[%clk
0:01:50.3]} 11. Rf1 {[%clk 0:01:59.8]} 11... Qxh2 {[%clk 0:01:50.2]} 12. Bf4
{[%clk 0:01:56.5]} 12... Bh3 {[%clk 0:01:27.3]} 13. Qd4 {[%clk 0:01:56.2]} 13...
Bxc3+ {[%clk 0:01:17.8]} 14. bxc3 {[%clk 0:01:52.6]} 14... Bxf1 {[%clk
0:01:17.7]} 15. Bxf1 {[%clk 0:01:52.6]} 15... Nf6 {[%clk 0:01:07.7]} 16. O-O-O
{[%clk 0:01:38.4]} 16... O-O {[%clk 0:01:07.1]} 17. dxc6 {[%clk 0:01:36.4]}
17... h6 {[%clk 0:00:49.7]} 18. Ba6 {[%clk 0:01:25.8]} 18... Nh5 {[%clk
0:00:25.4]} 19. Bxc7 {[%clk 0:01:22.6]} 19... Nxg3 {[%clk 0:00:24.1]} 20. Qe5
{[%clk 0:01:13.5]} 20... Ne2+ {[%clk 0:00:08.8]} 21. Bxe2 {[%clk 0:01:10.8]}
21... Qxe5 {[%clk 0:00:08.3]} 22. Bxe5 {[%clk 0:01:11.4]} 22... Rfe8 {[%clk
0:00:08.5]} 23. f4 {[%clk 0:01:10.9]} 23... f6 {[%clk 0:00:08.1]} 24. Bc4+
{[%clk 0:01:11.1]} 24... Kh8 {[%clk 0:00:04.9]} 25. Bd6 {[%clk 0:01:08.5]} 25...
Rac8 {[%clk 0:00:02.7]} 26. c7 {[%clk 0:01:07]} 1-0